bitfinex/quotes_SOLUSD_20251208
["timestamp","ask_amount","ask_price","bid_price","bid_amount"]
[1765157446416,7.48615062,133.58,133.56,8.34]
[1765157446614,17.2888843,133.58,133.56,8.34]
[1765157446945,8.20615062,133.58,133.56,8.34]
[1765157447531,9.80273368,133.57,133.5,0.2]
[1765157447724,9.80273368,133.57,133.51,9.08273368]
[1765157448117,26.20152717,133.58,133.52,18.08273368]
[1765157448439,7.48727163,133.56,133.52,8.34]
[1765157448622,16.57000531,133.56,133.52,8.34]
[1765157448832,8.20727163,133.56,133.52,8.34]
[1765157449449,0.72,133.56,133.52,8.34]
[1765157450224,35.28632965,133.57,133.52,9.0]
[1765157450420,26.92359597,133.57,133.52,18.08273368]
[1765157451046,0.69,133.56,133.52,8.34]
[1765157451243,9.08273368,133.55,133.52,8.34]
[1765157451462,0.69,133.56,133.52,9.03]
[1765157451624,26.20359597,133.57,133.52,18.11273368]
[1765157452117,7.48681826,133.57,133.53,9.77273368]
[1765157452321,24.648864,133.62,133.56,9.08273368]
[1765157452322,0.69,133.61,133.56,9.08273368]
[1765157452650,8.17446972,133.61,133.57,9.08273368]
[1765157452949,7.48396062,133.62,133.58,9.08273368]
[1765157453157,8.17396062,133.62,133.58,9.08273368]
[1765157453455,7.48345206,133.63,133.59,9.08273368]
[1765157453751,9.08273368,133.73,133.62,25.39159768]
[1765157453922,9.77273368,133.72,133.62,16.308864]
[1765157454120,9.08273368,133.69,133.62,25.39159768]
[1765157454364,9.08273368,133.67,133.6,9.05]
[1765157454651,7.4816699,133.66,133.6,33.75159768]
[1765157454866,7.4816699,133.66,133.61,9.08273368]
[1765157455150,8.1716699,133.66,133.61,9.08273368]
[1765157455353,26.87584467,133.66,133.61,9.08273368]
[1765157455522,0.69,133.65,133.61,9.08273368]
[1765157455722,0.69,133.65,133.61,17.44273368]
[1765157455945,26.18584467,133.66,133.61,17.44273368]
[1765157456254,26.87584467,133.66,133.61,18.13273368]
[1765157456457,0.69,133.66,133.62,9.08273368]
[1765157456756,7.48117623,133.67,133.63,9.08273368]
[1765157456953,8.17117623,133.67,133.62,0.69]
[1765157457162,7.48117623,133.67,133.63,0.69]
[1765157457358,0.69,133.69,133.63,9.77273368]
[1765157457857,9.08273368,133.67,133.61,18.13273368]
[1765157458063,35.9528415,133.69,133.62,9.77273368]
[1765157458442,7.4816699,133.66,133.61,8.36]
[1765157458949,8.1716699,133.66,133.61,8.36]
[1765157459354,8.1716699,133.66,133.61,9.05]
[1765157459763,35.26857835,133.66,133.61,8.36]
[1765157459961,0.69,133.65,133.61,8.36]
[1765157460261,8.1716699,133.66,133.61,8.36]
[1765157460578,7.4822297,133.65,133.61,9.05]
[1765157460785,19.38718046,133.71,133.64,9.08273368]
[1765157460934,19.38718046,133.71,133.65,17.44273368]
[1765157461137,16.56104657,133.72,133.65,17.44273368]
[1765157461387,0.68,133.74,133.68,9.08273368]
[1765157461542,0.99999999,133.83,133.69,8.36]
[1765157461543,0.68,133.78,133.69,8.36]
[1765157461843,26.83649054,133.81,133.72,16.308864]
[1765157462043,9.08273368,133.77,133.73,8.36]
[1765157462250,9.08273368,133.79,133.73,8.36]
[1765157462452,9.08273368,133.78,133.73,8.36]
[1765157462658,7.47495888,133.78,133.73,8.36]
[1765157462854,7.47495888,133.78,133.73,18.10273368]
[1765157463244,7.4744814,133.79,133.74,0.66]
[1765157463447,0.68,133.83,133.77,9.08273368]
[1765157463641,9.76273368,133.82,133.77,8.36]
[1765157463845,0.68,133.82,133.77,8.36]
[1765157464081,0.68,133.82,133.77,9.02]
[1765157464360,7.47216618,133.83,133.78,9.74273368]
[1765157464541,7.47216618,133.83,133.78,17.21759799]
[1765157464740,7.47216618,133.83,133.77,8.36]
[1765157464963,0.68,133.82,133.77,8.36]
[1765157465165,5.85015136,133.82,133.77,9.02]
[1765157465341,26.15258163,133.83,133.77,9.02]
[1765157465541,32.00273299,133.83,133.77,9.02]
[1765157465769,32.68273299,133.83,133.77,9.02]
[1765157466268,6.53015136,133.82,133.77,8.36]
[1765157466468,5.85015136,133.79,133.72,14.21015136]
[1765157466687,69.36356389,133.83,133.72,8.36]
[1765157466688,7.47551767,133.77,133.72,8.36]
[1765157466974,5.85015136,133.76,133.72,8.36]
[1765157467154,5.85015136,133.75,133.68,5.85015136]
[1765157467343,6.53015136,133.75,133.69,8.36]
[1765157467550,26.16431186,133.77,133.69,8.36]
[1765157467551,5.85015136,133.74,133.69,8.36]
[1765157467866,6.53015136,133.74,133.69,8.36]
[1765157468046,0.68,133.74,133.69,8.36]
[1765157468242,5.85015136,133.74,133.67,0.66]
[1765157468443,5.85015136,133.72,133.67,8.36]
[1765157468674,32.026204,133.71,133.67,8.36]
[1765157468876,7.47887218,133.71,133.67,8.36]
[1765157469088,5.85015136,133.75,133.68,6.51015136]
[1765157469378,0.68,133.77,133.68,6.51015136]
[1765157469379,18.6875516,133.78,133.74,5.85015136]
[1765157469551,8.15328301,133.81,133.77,5.85015136]
[1765157469941,8.15328301,133.81,133.75,24.688864]
[1765157469942,26.83649054,133.81,133.76,5.85015136]
[1765157470454,7.47328301,133.81,133.77,5.85015136]
[1765157470781,6.53015136,133.8,133.75,8.38]
[1765157470993,5.85015136,133.78,133.72,22.15901536]
[1765157471369,0.68,133.77,133.72,22.15901536]
[1765157471689,6.53015136,133.77,133.71,14.23015136]
[1765157471870,0.68,133.79,133.74,5.85015136]
[1765157472683,7.47495888,133.78,133.75,5.85015136]
[1765157473089,8.1545646,133.79,133.75,5.85015136]
[1765157473283,26.15697802,133.81,133.77,5.85015136]
[1765157473595,5.85015136,133.79,133.75,8.38]
[1765157473891,5.85015136,133.77,133.71,5.85015136]
[1765157474272,6.53015136,133.76,133.7,8.38]
[1765157474479,0.68,133.76,133.71,5.85015136]
[1765157474678,7.47551767,133.77,133.72,5.85015136]
[1765157474985,26.84431186,133.77,133.72,5.85015136]
[1765157475794,8.15551767,133.77,133.72,5.85015136]
[1765157475982,8.15551767,133.77,133.72,6.51015136]
[1765157476295,7.47216618,133.83,133.73,5.85015136]
[1765157476596,0.68,133.81,133.78,5.85015136]
[1765157476785,0.68,133.83,133.78,5.85015136]
[1765157476994,0.68,133.82,133.78,5.85015136]
[1765157477197,0.68,133.84,133.79,5.85015136]
[1765157478373,6.53015136,133.84,133.78,14.23015136]
[1765157478575,0.68,133.84,133.79,5.85015136]
[1765157478781,7.47216618,133.83,133.79,5.85015136]
[1765157479282,8.15216618,133.83,133.79,5.85015136]
[1765157479484,8.15216618,133.83,133.78,14.23015136]
[1765157480009,0.68,133.82,133.78,8.38]
[1765157480386,26.15258163,133.83,133.78,14.23015136]
[1765157480686,7.47216618,133.83,133.78,14.89015136]
[1765157480893,8.17216618,133.83,133.78,14.89015136]
[1765157482004,8.17216618,133.83,133.78,22.36504544]
[1765157482226,8.17216618,133.83,133.78,14.89015136]
[1765157482390,7.47216618,133.83,133.79,6.52015136]
[1765157482598,26.15258163,133.83,133.78,14.23015136]
[1765157482799,26.85258163,133.83,133.78,14.23015136]
[1765157483099,7.47216618,133.83,133.79,5.85015136]
[1765157483287,7.47216618,133.83,133.79,6.52015136]
[1765157483995,26.15062761,133.84,133.79,0.67]
[1765157484188,5.85015136,133.83,133.78,8.38]
[1765157484392,6.55015136,133.83,133.78,8.38]
[1765157484612,0.7,133.82,133.78,8.38]
[1765157485597,7.47328301,133.81,133.78,8.38]
[1765157486011,49.28135353,133.87,133.8,5.85015136]
[1765157486012,31.9968718,133.86,133.8,5.85015136]
[1765157486212,32.6968718,133.86,133.8,5.85015136]
[1765157486390,26.84672044,133.86,133.81,5.85015136]
[1765157486596,26.84672044,133.86,133.82,8.36]
[1765157486816,26.14672044,133.86,133.82,8.36]
[1765157486995,11.01908039,133.87,133.83,6.52015136]
[1765157487319,11.01908039,133.87,133.83,7.02015136]
[1765157487493,11.01908039,133.87,133.84,6.52015136]
[1765157487689,3.54912178,133.87,133.85,5.85015136]
[1765157488012,11.01910267,133.87,133.84,5.85015136]
[1765157488214,3.54912178,133.87,133.86,5.85015136]
[1765157488412,3.54912178,133.87,133.86,14.21015136]
[1765157488615,3.54912178,133.87,133.86,14.88015136]
[1765157488995,3.54912178,133.87,133.86,8.36]
[1765157489313,3.54912178,133.87,133.86,9.03]
[1765157489498,3.54912178,133.87,133.86,14.88015136]
[1765157489698,11.01905529,133.87,133.86,8.36]
[1765157490009,3.54912178,133.87,133.86,14.88015136]
[1765157490338,3.54912178,133.87,133.86,8.36]
[1765157490491,11.01905529,133.87,133.86,8.36]
[1765157490996,3.54912178,133.87,133.86,14.88015136]
[1765157491182,3.54912178,133.87,133.86,22.35064291]
[1765157491383,2.82912178,133.87,133.86,38.65950691]
[1765157491582,2.82912178,133.87,133.86,24.668864]
[1765157492225,2.82912178,133.87,133.86,30.51901536]
[1765157492524,10.29905529,133.87,133.86,8.36]
[1765157493016,2.82912178,133.87,133.86,8.36]
[1765157493216,10.29905529,133.87,133.86,8.36]
[1765157493818,29.67388908,133.87,133.81,5.85015136]
[1765157494015,29.67388908,133.87,133.82,8.36]
[1765157494199,10.29905529,133.87,133.82,15.83271922]
[1765157494517,10.29905529,133.87,133.84,5.85015136]
[1765157494724,2.82912178,133.87,133.86,5.85015136]
[1765157495614,2.82912178,133.87,133.85,14.21015136]
[1765157495991,2.82912178,133.87,133.85,8.36]
[1765157495992,10.29911324,133.87,133.85,8.36]
[1765157496832,2.82912178,133.87,133.85,14.21015136]
[1765157497129,2.82912178,133.87,133.85,8.36]
[1765157497419,10.29937341,133.87,133.85,8.36]
[1765157497725,10.29924198,133.87,133.85,8.36]
[1765157498429,0.7,133.86,133.85,8.36]
[1765157499729,8.17049155,133.86,133.85,8.36]
[1765157501116,10.29920175,133.87,133.85,8.36]
[1765157501425,0.7,133.86,133.85,8.36]
[1765157501630,2.82912178,133.87,133.85,8.36]
[1765157501794,2.82912178,133.87,133.86,5.85015136]
[1765157502233,2.82912178,133.87,133.86,22.15901536]
[1765157502524,2.82912178,133.87,133.86,14.66009628]
[1765157502903,2.82912178,133.87,133.86,5.85015136]
[1765157503106,2.82912178,133.87,133.86,14.66009628]
[1765157503730,2.82912178,133.87,133.86,22.13058783]
[1765157506514,0.1,133.88,133.87,8.80994492]
[1765157506824,0.1,133.92,133.9,16.308864]
[1765157507130,0.1,133.92,133.91,14.21015136]
[1765157507447,0.1,133.92,133.91,23.02009628]
[1765157507741,0.1,133.92,133.91,14.21015136]
[1765157508533,0.8,133.92,133.89,8.38]
[1765157509133,0.1,133.92,133.9,5.85015136]
[1765157509721,0.1,133.92,133.91,22.15901536]
[1765157509927,0.1,133.92,133.91,38.43666246]
[1765157512538,0.1,133.92,133.91,22.12779846]
[1765157513313,1e-08,133.92,133.91,28.97794981]
[1765157513508,7.46277988,134.0,133.95,25.11880892]
[1765157513711,8.16277988,134.0,133.96,24.668864]
[1765157514023,0.7,133.99,133.96,24.668864]
[1765157514422,0.7,133.99,133.96,30.51901536]
[1765157515031,8.16360827,133.99,133.96,24.668864]
[1765157515440,8.16360827,133.99,133.96,30.51901536]
[1765157515738,8.16340703,133.99,133.96,30.51901536]
[1765157515937,0.7,133.98,133.96,30.51901536]
[1765157516238,0.7,133.98,133.96,24.668864]
[1765157516948,8.16385193,133.98,133.96,24.668864]
[1765157517117,8.16385193,133.98,133.96,8.36]
[1765157517315,6.53015136,133.97,133.89,5.85015136]
[1765157517516,5.85015136,133.96,133.9,8.36]
[1765157517717,6.53015136,133.96,133.9,8.36]
[1765157517934,0.68,133.95,133.9,8.36]
[1765157518532,0.68,133.95,133.9,14.21015136]
[1765157518748,7.46602956,133.94,133.9,14.21015136]
[1765157519244,0.68,133.93,133.9,14.21015136]
[1765157519450,14.21015136,134.01,133.9,14.21015136]
[1765157519451,0.68,133.97,133.92,22.15901536]
[1765157519653,0.68,133.97,133.93,14.21015136]
[1765157519950,6.53015136,133.97,133.93,8.36]
[1765157520326,5.85015136,134.0,133.93,14.21015136]
[1765157520527,6.53015136,134.01,133.95,5.85015136]
[1765157520727,7.46268656,134.0,133.96,14.21015136]
[1765157521030,5.85015136,134.02,133.96,21.67486018]
[1765157521031,0.68,133.99,133.96,21.67486018]
[1765157521235,0.68,133.99,133.96,14.21015136]
[1765157521919,8.14157289,134.02,133.97,5.85015136]
[1765157522122,8.14157289,134.02,133.98,5.85015136]
[1765157522354,0.68,134.01,133.99,8.36]
[1765157522649,6.53015136,134.01,133.98,8.36]
[1765157522819,7.46268656,134.0,133.98,8.36]
[1765157523016,8.14268656,134.0,133.98,8.36]
[1765157523243,0.68,133.99,133.98,8.36]
[1765157523647,6.53015136,133.99,133.95,16.308864]
[1765157523848,6.53015136,133.99,133.96,8.36]
[1765157524022,6.53015136,133.98,133.96,8.36]
[1765157524348,5.85015136,133.97,133.88,5.85015136]
[1765157524669,5.85015136,133.97,133.89,8.36]
[1765157524670,5.85015136,133.94,133.89,8.36]
[1765157524967,0.68,133.96,133.9,8.36]
[1765157525147,0.68,133.95,133.91,9.04205861]
[1765157525322,9.04205861,133.99,133.92,9.04205861]
[1765157525647,0.68,133.97,133.93,17.40205861]
[1765157526052,26.10966057,134.05,133.96,25.35092261]
[1765157526272,7.45990302,134.05,134.01,16.308864]
[1765157526419,8.23947436,134.06,134.02,17.40205861]
[1765157526618,0.68,134.05,134.0,8.80994492]
[1765157526819,0.68,134.05,133.99,8.38]
[1765157526820,16.50251817,134.04,133.99,8.38]
[1765157527039,9.04205861,134.03,134.0,8.38]
[1765157527229,0.68,134.03,134.0,8.38]
[1765157527435,0.68,134.02,134.0,8.38]
[1765157528172,7.45995701,134.05,134.0,8.38]
[1765157528460,0.68,134.04,134.0,17.42205861]
[1765157528619,7.45995701,134.05,134.0,18.10205861]
[1765157528825,0.68,134.05,134.02,9.04205861]
[1765157529024,0.68,134.05,134.03,8.38]
[1765157529441,0.1,134.06,134.04,9.72205861]
[1765157529651,0.1,134.06,134.05,9.04205861]
[1765157529958,0.1,134.06,134.04,25.35092261]
[1765157530162,0.1,134.06,134.05,9.04205861]
[1765157530526,0.1,134.06,134.04,25.35092261]
[1765157530736,8.23951681,134.06,134.03,8.38]
[1765157531062,0.1,134.06,134.03,8.38]
[1765157531261,0.1,134.06,134.03,24.88285838]
[1765157531440,0.1,134.06,134.05,16.308864]
[1765157531983,0.1,134.06,134.05,16.988864]
[1765157532283,0.1,134.06,134.05,26.03092261]
[1765157532552,0.1,134.06,134.05,25.35092261]
[1765157532929,0.1,134.06,134.05,8.38]
[1765157533134,0.1,134.06,134.05,43.22086753]
[1765157533340,0.1,134.06,134.05,34.37190655]
[1765157533950,0.1,134.06,134.05,33.69190655]
[1765157534149,0.1,134.06,134.05,25.32984794]
[1765157534342,0.1,134.06,134.05,34.37190655]
[1765157534542,0.1,134.06,134.04,16.308864]
[1765157534743,0.1,134.06,134.05,8.38]
[1765157535143,0.1,134.06,134.05,17.42205861]
[1765157535558,0.1,134.06,134.05,33.73092261]
[1765157535731,0.1,134.06,134.05,24.688864]
[1765157535931,0.78,134.06,134.01,7.46208675]
[1765157536134,9.04205861,134.04,134.0,8.80994492]
[1765157536354,0.78,134.06,133.99,8.38]
[1765157536355,9.04205861,134.02,133.99,8.38]
[1765157536557,0.68,134.01,133.99,8.38]
[1765157536764,9.72205861,134.01,133.97,8.38]
[1765157537059,7.46268656,134.0,133.97,8.38]
[1765157537271,0.68,134.01,133.97,24.88635953]
[1765157537443,0.68,134.01,133.97,41.19522353]
[1765157537643,8.14214861,134.01,133.97,32.15316492]
[1765157537847,18.74952613,134.06,134.0,25.35092261]
[1765157538048,9.04205861,134.05,134.01,8.38]
[1765157538262,0.68,134.05,134.01,8.38]
[1765157538443,0.1,134.06,134.01,8.38]
[1765157538650,7.45990302,134.05,134.01,33.73092261]
[1765157538856,8.13990302,134.05,134.01,33.73092261]
[1765157539057,0.68,134.04,134.01,24.688864]
[1765157539578,0.1,134.06,134.01,24.688864]
[1765157539579,0.1,134.06,134.03,25.35092261]
[1765157539775,0.78,134.06,134.04,17.44205861]
[1765157539979,0.1,134.06,134.05,9.04205861]
[1765157540186,0.1,134.06,134.05,43.24086753]
[1765157540365,0.1,134.06,134.05,26.93200353]
[1765157541082,0.1,134.06,134.05,34.39190655]
[1765157541585,9.04205861,134.15,134.05,34.39190655]
[1765157541586,0.68,134.16,134.08,16.308864]
[1765157541748,0.68,134.16,134.13,9.04205861]
[1765157541953,8.13388145,134.16,134.14,8.4]
[1765157542250,8.13388145,134.16,134.12,16.308864]
[1765157542251,26.76834775,134.16,134.03,10.83427098]
[1765157542451,0.68,134.15,134.09,25.35092261]
[1765157542684,0.68,134.15,134.1,8.4]
[1765157542883,0.68,134.15,134.12,9.04205861]
[1765157543179,8.13436757,134.15,134.13,8.4]
[1765157543482,0.68,134.15,134.13,17.44205861]
[1765157543876,8.13435457,134.15,134.13,8.4]
[1765157544080,35.81226856,134.15,134.05,19.329512]
[1765157544271,35.81226856,134.15,134.09,16.308864]
[1765157544272,0.68,134.14,134.09,16.308864]
[1765157544585,0.68,134.14,134.11,9.04205861]
[1765157544760,7.45387894,134.16,134.13,9.04205861]
[1765157544959,8.13387894,134.16,134.14,8.4]
[1765157545177,0.68,134.15,134.14,8.4]
[1765157547077,7.45489786,134.14,134.13,8.4]
[1765157547458,0.68,134.14,134.13,8.4]
[1765157548381,0.68,134.14,134.09,9.04205861]
[1765157548585,0.68,134.14,134.1,8.38]
[1765157548790,9.72205861,134.14,134.08,16.308864]
[1765157548990,9.04205861,134.13,134.06,9.04205861]
[1765157549284,16.49806815,134.12,134.08,8.38]
[1765157549483,9.04205861,134.11,134.08,8.38]
[1765157549685,0.68,134.11,134.08,8.38]
[1765157549865,7.45556008,134.13,134.1,9.04205861]
[1765157550268,8.13434215,134.15,134.11,17.42205861]
[1765157550672,0.68,134.14,134.11,17.42205861]
[1765157551263,8.13514475,134.14,134.11,17.42205861]
[1765157551688,0.68,134.14,134.11,17.42205861]
[1765157552006,8.13492563,134.14,134.11,17.42205861]
[1765157552304,8.13492563,134.14,134.11,8.38]
[1765157552464,7.45492563,134.14,134.11,8.38]
[1765157552664,0.68,134.13,134.11,8.38]
[1765157552877,0.68,134.13,134.12,0.7]
[1765157553086,9.72205861,134.13,134.12,0.7]
[1765157553290,9.72205861,134.13,134.09,8.38]
[1765157553488,9.04205861,134.11,134.09,8.38]
[1765157553700,9.04205861,134.11,134.05,9.04205861]
[1765157553905,0.68,134.1,134.06,8.38]
[1765157555304,0.68,134.1,134.06,17.42205861]
[1765157555483,8.13743637,134.1,134.06,24.88120816]
[1765157555680,7.45664585,134.11,134.07,9.04205861]
[1765157555886,8.38,134.16,134.1,9.04205861]
[1765157555887,0.68,134.16,134.1,9.04205861]
[1765157556101,0.68,134.16,134.12,9.04205861]
[1765157556697,7.45323097,134.17,134.14,9.04205861]
[1765157556897,7.45323097,134.17,134.15,8.38]
[1765157557090,0.68,134.16,134.11,0.68]
[1765157557333,0.68,134.16,134.12,8.38]
[1765157557500,7.45434215,134.15,134.12,8.38]
[1765157557920,8.13434215,134.15,134.12,8.38]
[1765157558292,7.45434215,134.15,134.12,17.42205861]
[1765157558501,7.45434215,134.15,134.13,9.04205861]
[1765157558691,7.45393763,134.16,134.14,9.04205861]
[1765157558893,8.13393763,134.16,134.13,9.04205861]
[1765157559102,7.45393763,134.16,134.14,8.38]
[1765157559614,8.13393763,134.16,134.14,8.38]
[1765157561014,7.45393763,134.16,134.14,8.38]
[1765157561192,8.13393763,134.16,134.14,8.38]
[1765157562013,8.13393763,134.16,134.14,17.42205861]
[1765157562319,7.45340397,134.17,134.14,8.38]
[1765157562484,8.13340397,134.17,134.14,8.38]
[1765157562885,8.13249615,134.19,134.16,9.04205861]
[1765157563196,0.68,134.22,134.17,17.42205861]
[1765157563399,9.72205861,134.22,134.18,8.38]
[1765157563609,26.75673962,134.22,134.18,8.38]
[1765157563787,0.68,134.21,134.18,8.38]
[1765157564114,9.04205861,134.19,134.12,9.04205861]
[1765157564309,9.04205861,134.19,134.11,9.06]
[1765157564310,9.04205861,134.15,134.11,8.38]
[1765157564535,9.04205861,134.12,134.04,9.04205861]
[1765157564851,8.38,134.14,134.05,8.38]
[1765157564852,9.04205861,134.09,134.05,8.38]
[1765157565307,0.68,134.08,134.04,8.38]
[1765157565508,0.68,134.08,134.04,17.42205861]
[1765157565913,8.13859892,134.08,134.04,17.42205861]
[1765157566107,8.13859892,134.08,134.04,25.56250785]
[1765157566313,8.13859892,134.08,134.04,8.38]
[1765157566995,9.04205861,134.06,134.05,16.308864]
[1765157567311,9.04205861,134.06,134.04,24.688864]
[1765157567616,9.04205861,134.06,134.04,32.14930696]
[1765157567916,9.04205861,134.07,134.05,0.68]
[1765157568120,9.04205861,134.07,134.05,1.38]
[1765157568293,9.04205861,134.08,134.05,0.7]
[1765157569129,9.04205861,134.06,134.05,0.7]
[1765157569620,9.04205861,134.06,134.05,8.38]
[1765157570024,9.72205861,134.06,134.04,16.308864]
[1765157570207,16.50140517,134.06,134.03,24.688864]
[1765157570398,16.50140517,134.06,134.03,8.38]
[1765157570909,9.04205861,134.06,134.03,15.84092701]
[1765157571111,9.04205861,134.09,134.05,16.308864]
[1765157571411,9.04205861,134.09,134.06,8.38]
[1765157571613,9.04205861,134.12,134.08,16.308864]
[1765157572009,9.04205861,134.1,134.06,24.688864]
[1765157572530,9.04205861,134.1,134.06,25.398864]
[1765157572714,9.75205861,134.1,134.06,25.398864]
[1765157573106,9.04205861,134.08,134.03,0.71]
[1765157573329,9.04205861,134.06,134.0,7.46213424]
[1765157573530,9.04205861,134.06,134.01,16.55202003]
[1765157573713,9.04205861,134.06,134.01,9.09]
[1765157573912,8.38,134.12,133.98,0.2]
[1765157573913,9.04205861,134.02,133.98,0.2]
[1765157574324,9.04205861,134.02,134.0,16.308864]
[1765157574922,9.75205861,134.02,134.0,24.688864]
[1765157575410,9.04205861,134.02,134.0,8.38]
[1765157575607,0.71,134.04,134.0,8.38]
[1765157575608,17.21262856,134.04,134.0,8.38]
[1765157577429,9.73205861,134.03,134.0,8.38]
[1765157577955,9.04205861,134.04,134.0,8.38]
[1765157578323,9.73205861,134.04,134.0,8.38]
[1765157578516,9.04205861,134.02,134.0,8.38]
[1765157578709,0.69,134.03,134.0,8.38]
[1765157579036,9.04205861,134.01,134.0,8.38]
[1765157579408,17.1941883,134.01,133.98,0.2]
[1765157580133,8.15212969,134.01,133.98,0.2]
[1765157580336,9.04205861,134.0,133.98,0.2]
[1765157580633,16.5041883,134.01,133.98,8.58]
[1765157580810,0.69,134.06,133.99,0.68]
[1765157581010,44.74606606,134.09,134.03,16.308864]
[1765157581011,9.73205861,134.08,134.03,16.308864]
[1765157581230,9.73205861,134.08,134.04,8.38]
[1765157581430,7.45934656,134.06,134.04,8.38]
[1765157582336,8.14934656,134.06,134.04,8.38]
[1765157582535,7.45934656,134.06,134.04,8.38]
[1765157583121,28.37902956,134.08,134.04,8.38]
[1765157583122,7.45879643,134.07,134.04,8.38]
[1765157584818,8.14879643,134.07,134.04,8.38]
[1765157587369,32.615675,134.12,134.05,0.68]
[1765157587540,5.82964161,134.11,134.05,0.68]
[1765157588218,32.615675,134.12,134.07,16.308864]
[1765157588415,32.615675,134.12,134.08,8.38]
[1765157588842,26.78603339,134.12,134.08,8.38]
[1765157589041,7.45581481,134.13,134.09,0.68]
[1765157589349,7.45509594,134.14,134.1,16.308864]
[1765157589543,18.63508349,134.16,134.11,8.38]
[1765157589720,0.69,134.17,134.11,14.88964161]
[1765157589928,0.69,134.17,134.12,0.68]
[1765157590143,8.14341465,134.17,134.12,0.68]
[1765157590322,7.45341465,134.17,134.12,6.50964161]
[1765157590522,7.45341465,134.17,134.12,0.68]
[1765157590523,8.14341465,134.17,134.12,0.68]
[1765157590751,0.69,134.21,134.15,16.308864]
[1765157591043,0.69,134.21,134.16,8.38]
[1765157591044,6.51964161,134.21,134.16,8.38]
[1765157591246,6.51964161,134.21,134.16,9.06]
[1765157591548,5.82964161,134.19,134.16,8.38]
[1765157591718,5.82964161,134.19,134.15,16.308864]
[1765157591918,0.69,134.18,134.16,8.38]
[1765157592325,26.07659066,134.22,134.16,8.38]
[1765157592326,26.07659066,134.22,134.17,0.68]
[1765157592738,26.76659066,134.22,134.17,0.68]
[1765157593932,26.76659066,134.22,134.15,16.308864]
[1765157593933,5.82964161,134.18,134.15,16.308864]
[1765157594250,0.69,134.21,134.12,24.688864]
[1765157594251,5.82964161,134.17,134.12,24.688864]
[1765157594625,0.69,134.17,134.13,0.68]
[1765157594890,8.14378652,134.16,134.12,24.688864]
[1765157595049,32.60789443,134.16,134.12,8.38]
[1765157595349,5.82964161,134.13,134.07,8.38]
[1765157595528,5.82964161,134.13,134.07,14.20964161]
[1765157595729,0.69,134.12,134.08,16.308864]
[1765157596139,63.35718543,134.16,134.08,16.308864]
[1765157596341,31.91789443,134.16,134.1,5.82964161]
[1765157596541,32.60789443,134.16,134.1,14.20964161]
[1765157596726,7.45600954,134.12,134.09,8.38]
[1765157597145,7.45489786,134.14,134.1,0.68]
[1765157597341,7.45451916,134.15,134.11,5.82964161]
[1765157597554,7.45451916,134.15,134.12,8.38]
[1765157597752,7.45451916,134.15,134.12,9.06]
[1765157597940,7.45391465,134.16,134.12,9.06]
[1765157598555,13.97176173,134.19,134.13,0.68]
[1765157598761,32.60206205,134.19,134.13,0.68]
[1765157598963,5.82964161,134.17,134.14,8.38]
[1765157599124,5.82964161,134.15,134.08,16.308864]
[1765157599326,5.82964161,134.13,134.09,8.38]
[1765157599523,5.82964161,134.11,134.09,8.38]
[1765157599727,5.82964161,134.12,134.09,8.38]
[1765157599927,5.82964161,134.11,134.09,8.38]
[1765157600432,6.51964161,134.11,134.09,8.38]
[1765157600735,7.45323097,134.17,134.09,8.38]
[1765157600951,5.82964161,134.12,134.09,8.38]
[1765157601131,5.82964161,134.11,134.09,8.38]
[1765157601471,5.82964161,134.1,134.06,8.38]
[1765157601643,8.38,134.14,134.06,8.38]
[1765157601644,5.82964161,134.09,134.06,8.38]
[1765157601966,5.82964161,134.07,134.03,0.67]
[1765157602262,5.82964161,134.08,134.04,8.38]
[1765157602628,8.38,134.14,134.04,8.38]
[1765157602629,0.68,134.07,134.04,8.38]